Workbook

Sheet Bilancio Preventivo Finanziario
A1: ORDINE DEGLI PSICOLOGI DEL LAZIO
A2: PREVENTIVO FINANZIARIO GESTIONALE - Esercizio 2017
A3: PARTE I - ENTRATA
A4: Codice | B4: Denominazione | C4: Residui attivi presunti alla fine dell'anno in corso ( iniziali 2017 ) | D4: Previsioni iniziali dell'anno in corso ( 2016 ) | E4: VARIAZIONI | F4: Previsioni di competenza per l'anno 2017 | G4: Previsioni di cassa per l'anno 2017
B5: Avanzo di cassa presunto | G5: 1005207.29
B6: Avanzo di amministrazione presunto | D6: 818723.21 | F6: 478267.63
B8: 1. - Ordine degli Psicologi del Lazio
B9: 1. - TITOLO I - ENTRATE CORRENTI
B10: 1.1. - ENTRATE CONTRIBUTIVE
B11: 1.1.1. - ALIQUOTE CONTRIBUTIVE A CARICO DEI
B12: DATORI DI LAVORO O DEGLI ISCRITTI
A13: 1.1.1.001. | B13: Quote di iscrizione | C13: 370000 | D13: 2948800 | E13: =F13-D13 -> 149240 | F13: 3098040 | G13: 3082492.8
A14: 1.1.1.002. | B14: Quote anni precedenti | C14: 0 | D14: 0 | E14: =F14-D14 -> 25000 | F14: 25000 | G14: 25000
B15: TOTALE 1.1.1. - ALIQUOTE CONTRIBUTIVE A CARICO DEI DATORI DI LAVORO O DEGLI ISCRITTI | C15: 370000 | D15: 2948800 | E15: 174240 | F15: 3123040 | G15: 3107492.8
B16: TOTALE 1.1. - ENTRATE CONTRIBUTIVE | C16: 370000 | D16: 2948800 | E16: 174240 | F16: 3123040 | G16: 3107492.8
B17: 1.2. - ENTRATE DERIVANTI DA TRASFERIMENTI
B18: CORRENTI
B19: 1.2.2. - TRASFERIMENTO DA PARTE DELLE REGIONI
A20: 1.2.2.001. | B20: Contributo da parte delle regioni | C20: 0 | D20: 0 | E20: =F20-D20 -> 0 | F20: 0 | G20: 0
B21: TOTALE 1.2.2. - TRASFERIMENTO DA PARTE DELLE REGIONI | C21: 0 | D21: 0 | E21: =F21-D21 -> 0 | F21: 0 | G21: 0
B22: 1.2.3. - TRASFERIMENTI DA PARTE DEI COMUNI E
B23: DELLE PROVINCIE
A25: 1.2.3.001. | B25: Contributi da parte delle province | C25: 0 | D25: 0 | E25: =F25-D25 -> 0 | F25: 0 | G25: 0
A26: 1.2.3.002. | B26: Contributi da parte dei Comuni | C26: 0 | D26: 0 | E26: =F26-D26 -> 0 | F26: 0 | G26: 0
B27: TOTALE 1.2.3. - TRASFERIMENTI DA PARTE DEI COMUNI E DELLE PROVINCIE | C27: 0 | D27: 0 | E27: 0 | F27: 0 | G27: 0
B28: 1.2.4. - TRASFERIMENTI DA PARTE DI ALTRI ENTI DEL
B29: SETTORE PUBBLICO
A30: 1.2.4.001. | B30: Contributi trasferiti da altri Enti | C30: 10200 | D30: 0 | E30: =F30-D30 -> 0 | F30: 0 | G30: 10200
B31: TOTALE 1.2.4. - TRASFERIMENTI DA PARTE DI ALTRI ENTI DEL SETTORE PUBBLICO | C31: 10200 | D31: 0 | E31: =F31-D31 -> 0 | F31: 0 | G31: 10200
B32: TOTALE 1.2. - ENTRATE DERIVANTI DA TRASFERIMENTI CORRENTI | C32: 10200 | D32: 0 | E32: 0 | F32: 0 | G32: 10200
B33: 1.3. - ALTRE ENTRATE
B34: 1.3.1. - ENTRATE DERIVANTI DALLA VENDITA DI BENI
B35: E DALLA PRESTAZIONE DI SERVIZI
A36: 1.3.1.001. | B36: Ricavi dalla vendita di pubblicazioni | C36: 0 | D36: 0 | E36: =F36-D36 -> 0 | F36: 0 | G36: 0
A37: 1.3.1.002. | B37: Proventi derivanti dalla vendita di beni | C37: 0 | D37: 0 | E37: =F37-D37 -> 0 | F37: 0 | G37: 0
A38: 1.3.1.003. | B38: Diritti di segreteria | C38: 0 | D38: 0 | E38: 0 | F38: 0 | G38: 0
B39: TOTALE 1.3.1. - ENTRATE DERIVANTI DALLA VENDITA DI BENI E DALLA PRESTAZIONE DI SERVIZI | C39: 0 | D39: 0 | E39: 0 | F39: 0 | G39: 0
B40: 1.3.2. - REDDITI E PROVENTI PATRIMONIALI
A41: 1.3.2.001. | B41: Interessi attivi su depositi e conti correnti | C41: 6000 | D41: 20000 | E41: =F41-D41 -> 0 | F41: 20000 | G41: 21000
A42: 1.3.2.002. | B42: Trasferimenti | C42: 0 | D42: 0 | E42: =F42-D42 -> 0 | F42: 0 | G42: 0
B43: TOTALE 1.3.2. - REDDITI E PROVENTI PATRIMONIALI | C43: 6000 | D43: 20000 | E43: 0 | F43: 20000 | G43: 21000
B44: 1.3.3. - POSTE CORRETTIVE E COMPENSATIVE DI
B45: USCITE CORRENTI
A46: 1.3.3.001. | B46: Compensazione spese correnti | C46: 4000 | D46: 4000 | E46: =F46-D46 -> 0 | F46: 4000 | G46: 6000
A47: 1.3.3.002. | B47: Entrate per riproduzione di documenti ed atti | C47: 0 | D47: 0 | E47: =F47-D47 -> 900 | F47: 900 | G47: 200
A48: 1.3.3.003. | B48: Entrate derivanti da cause o liti | C48: 35603.53 | D48: 5000 | E48: -1000 | F48: 4000 | G48: 2500
A49: 1.3.3.004. | B49: Sanzioni su quote di iscrizioni (mora) | C49: 0 | D49: 1000 | E49: 0 | F49: 1000 | G49: 500
A50: 1.3.3.005. | B50: Arrotondamenti attivi | C50: 0 | D50: 0 | E50: 100 | F50: 100 | G50: 10
B51: TOTALE 1.3.3. - POSTE CORRETTIVE E COMPENSATIVE DI USCITE CORRENTI | C51: 39603.53 | D51: 10000 | E51: 0 | F51: 10000 | G51: 9210
B52: 1.3.4. - ENTRATE NON CLASSIFICABILI IN ALTRE VOCI
A54: 1.3.4.001. | B54: Entrate eventuali | C54: 0 | D54: 0 | E54: =F54-D54 -> 0 | F54: 0 | G54: 0
B55: TOTALE 1.3.4. - ENTRATE NON CLASSIFICABILI IN ALTRE VOCI | C55: 0 | D55: 0 | E55: =F55-D55 -> 0 | F55: 0 | G55: 0
B56: TOTALE 1.3. - ALTRE ENTRATE | C56: 45603.53 | D56: 30000 | E56: 0 | F56: 30000 | G56: 30210
B57: 2. - TITOLO II - ENTRATE IN CONTO CAPITALE
B58: 2.1. - ENTRATE PER ALIENAZIONE DI BENI
B59: PATRIMONIALI E RISCOSSIONE DI CREDITI
B60: 2.1.1. - ALIENAZIONE DI IMMOBILI E DIRITTI REALI
A61: 2.1.1.001. | B61: Cespiti ammortizzabili | C61: 0 | D61: 0 | E61: =F61-D61 -> 0 | F61: 0 | G61: 0
B62: TOTALE 2.1.1. - ALIENAZIONE DI IMMOBILI E DIRITTI REALI | C62: 0 | D62: 0 | E62: =F62-D62 -> 0 | F62: 0 | G62: 0
B63: 2.1.2. - ALIENAZIONE DI IMMOBILIZZAZIONI TECNICHE
A64: 2.1.2.001. | B64: Alienazione automezzi | C64: 0 | D64: 0 | E64: =F64-D64 -> 0 | F64: 0 | G64: 0
A65: 2.1.2.002. | B65: Alienazione mobili, macchine ed attrezzature tecniche | C65: 0 | D65: 0 | E65: =F65-D65 -> 0 | F65: 0 | G65: 0
B66: TOTALE 2.1.2. - ALIENAZIONE DI IMMOBILIZZAZIONI TECNICHE | C66: 0 | D66: 0 | E66: 0 | F66: 0 | G66: 0
B67: 2.1.3. - REALIZZO DI VALORI MOBILIARI
A68: 2.1.3.003. | B68: Realizzi di titoli emessi o garantiti dallo Stato | C68: 0 | D68: 0 | E68: =F68-D68 -> 0 | F68: 0 | G68: 0
A69: 2.1.3.004. | B69: Realizzi di obbligazioni e cartelle fondiarie | C69: 0 | D69: 0 | E69: =F69-D69 -> 0 | F69: 0 | G69: 0
A70: 2.1.3.005. | B70: Riscossioni di buoni postali | C70: 0 | D70: 0 | E70: =F70-D70 -> 0 | F70: 0 | G70: 0
A71: 2.1.3.006. | B71: Riscossioni di altri titoli di credito | C71: 0 | D71: 0 | E71: =F71-D71 -> 0 | F71: 0 | G71: 0
B72: TOTALE 2.1.3. - REALIZZO DI VALORI MOBILIARI | C72: 0 | D72: 0 | E72: =F72-D72 -> 0 | F72: 0 | G72: 0
B73: 2.1.4. - RISCOSSIONE DI CREDITI
A74: 2.1.4.002. | B74: Riscossione di mutui a medio e lungo termine | C74: 0 | D74: 0 | E74: =F74-D74 -> 0 | F74: 0 | G74: 0
A75: 2.1.4.003. | B75: Riscossione prestiti e snticipazioni | C75: 0 | D75: 0 | E75: =F75-D75 -> 0 | F75: 0 | G75: 0
A76: 2.1.4.004. | B76: Riscossione di prestiti ed anticipazione a breve termine | C76: 0 | D76: 0 | E76: 0 | F76: 0 | G76: 0
A77: 2.1.4.005. | B77: Ritiro di depositi a cauzione presso terzi | C77: 0 | D77: 0 | E77: =F77-D77 -> 0 | F77: 0 | G77: 0
A78: 2.1.4.006. | B78: Riscossione di crediti diversi | C78: 0 | D78: 0 | E78: =F78-D78 -> 0 | F78: 0 | G78: 0
B79: TOTALE 2.1.4. - RISCOSSIONE DI CREDITI | C79: 0 | D79: 0 | E79: =F79-D79 -> 0 | F79: 0 | G79: 0
B81: TOTALE 2.1. - ENTRATE PER ALIENAZIONE DI BENI PATRIMONIALI E RISCOSSIONE DI CREDITI | C81: 0 | D81: 0 | E81: =F81-D81 -> 0 | F81: 0 | G81: 0
B82: 2.2. - ENTRATE DERIVANTI DA TRASFERIMENTI IN
B83: CONTO CAPITALE
B84: 2.2.1. - TRASFERIMENTI DALLO STATO
A85: 2.2.1.001. | B85: Assegnazione dello Stato per le spese in conto capitale | C85: 0 | D85: 0 | E85: =F85-D85 -> 0 | F85: 0 | G85: 0
B86: TOTALE 2.2.1. - TRASFERIMENTI DALLO STATO | C86: 0 | D86: 0 | E86: =F86-D86 -> 0 | F86: 0 | G86: 0
B87: 2.2.2. - TRASFERIMENTI DALLE REGIONI
A88: 2.2.2.001. | B88: Trasferimenti in conto capitale da regione | C88: 0 | D88: 0 | E88: =F88-D88 -> 0 | F88: 0 | G88: 0
B89: TOTALE 2.2.2. - TRASFERIMENTI DALLE REGIONI | C89: 0 | D89: 0 | E89: =F89-D89 -> 0 | F89: 0 | G89: 0
B90: 2.2.3. - TRASFERIMENTI DA COMUNI E PROVINCE
A91: 2.2.3.001. | B91: Trasferimenti in conto capitale da provincia | C91: 0 | D91: 0 | E91: =F91-D91 -> 0 | F91: 0 | G91: 0
A92: 2.2.3.002. | B92: Trasferimenti in conto capitale da comune | C92: 0 | D92: 0 | E92: =F92-D92 -> 0 | F92: 0 | G92: 0
B93: TOTALE 2.2.3. - TRASFERIMENTI DA COMUNI E PROVINCE | C93: 0 | D93: 0 | E93: =F93-D93 -> 0 | F93: 0 | G93: 0
B94: 2.2.4. - TRASFERIMENTI DA ALTRI ENTI DEL SETTORE
B95: PUBBLICO
A96: 2.2.4.001. | B96: Trasferimenti in conto capitale da ente | C96: 0 | D96: 0 | E96: =F96-D96 -> 0 | F96: 0 | G96: 0
B97: TOTALE 2.2.4. - TRASFERIMENTI DA ALTRI ENTI DEL SETTORE PUBBLICO | C97: 0 | D97: 0 | E97: =F97-D97 -> 0 | F97: 0 | G97: 0
B98: TOTALE 2.2. - ENTRATE DERIVANTI DA TRASFERIMENTI IN CONTO CAPITALE | C98: 0 | D98: 0 | E98: 0 | F98: 0 | G98: 0
B100: 2.3. - ACCENSIONE DI PRESTITI
B101: 2.3.1. - ASSUNZIONE DI MUTUI
A102: 2.3.1.001. | B102: Assunzione di mutui | C102: 0 | D102: 0 | E102: =F102-D102 -> 0 | F102: 0 | G102: 0
B103: TOTALE 2.3.1. - ASSUNZIONE DI MUTUI | C103: 0 | D103: 0 | E103: =F103-D103 -> 0 | F103: 0 | G103: 0
B105: 2.3.2. - ASSUNZIONE DI ALTRI DEBITI FINANZIARI
A106: 2.3.2.001. | B106: Assunzione di altri debiti finanziari | C106: 0 | D106: 0 | E106: =F106-D106 -> 0 | F106: 0 | G106: 0
A107: 2.3.2.002. | B107: Rimborso di mutui | C107: 0 | D107: 0 | E107: =F107-D107 -> 0 | F107: 0 | G107: 0
B108: TOTALE 2.3.2. - ASSUNZIONE DI ALTRI DEBITI FINANZIARI | C108: 0 | D108: 0 | E108: 0 | F108: 0 | G108: 0
B109: TOTALE 2.3. - ACCENSIONE DI PRESTITI | C109: 0 | D109: 0 | E109: 0 | F109: 0 | G109: 0
B110: 4. - TITOLO IV - PARTITE DI GIRO
B111: 4.1. - ENTRATE AVENTI NATURA DI PARTITE DI GIRO
B112: 4.1.1. - ENTRATE AVENTI NATURA DI PARTITE DI GIRO
A113: 4.1.1.001. | B113: Ritenute Erariali | C113: 0 | D113: 200000 | E113: =F113-D113 -> 0 | F113: 200000 | G113: 200000
A114: 4.1.1.002. | B114: Ritenute previdenziali (INPS) | C114: 658.01 | D114: 82000 | E114: =F114-D114 -> 0 | F114: 82000 | G114: 82000
A115: 4.1.1.003. | B115: Ritenute assistenziali (INAIL) | C115: 0 | D115: 7000 | E115: 0 | F115: 7000 | G115: 7000
A116: 4.1.1.004. | B116: Trattenute sindacali | C116: 0 | D116: 5000 | E116: 0 | F116: 5000 | G116: 5000
A117: 4.1.1.005. | B117: Piccola CASSA | C117: 500 | D117: 15000 | E117: 0 | F117: 15000 | G117: 15500
A118: 4.1.1.006. | B118: Partite di giro | C118: 137646.77 | D118: 80000 | E118: 0 | F118: 80000 | G118: 130000
A119: 4.1.1.007. | B119: Rit. Inpdap Prestazioni Creditizie | C119: 0 | D119: 1000 | E119: 0 | F119: 1000 | G119: 1000
A120: 4.1.1.008. | B120: Inpgi | C120: 0 | D120: 0 | E120: 0 | F120: 0 | G120: 0
A121: 4.1.1.009. | B121: Carta di credito | C121: 500 | D121: 10000 | E121: 0 | F121: 10000 | G121: 10500
B122: TOTALE 4.1.1. - ENTRATE AVENTI NATURA DI PARTITE DI GIRO | C122: 139304.78 | D122: 400000 | E122: 0 | F122: 400000 | G122: 451000
B123: TOTALE 4.1. - ENTRATE AVENTI NATURA DI PARTITE DI GIRO | C123: 139304.78 | D123: 400000 | E123: =F123-D123 -> 0 | F123: 400000 | G123: 451000
B124: TOTALE 1. - Ordine degli Psicologi del Lazio | C124: 565108.31 | D124: 3378800 | E124: =F124-D124 -> 174240 | F124: 3553040 | G124: 3598902.8
B125: TOTALE GENERALE 4. - TITOLO IV - PARTITE DI GIRO | C125: 139304.78 | D125: 400000 | E125: =F125-D125 -> 0 | F125: 400000 | G125: 451000
B126: Totale delle Entrate | C126: 565108.31 | D126: 3378800 | E126: =F126-D126 -> 174240 | F126: 3553040 | G126: 3598902.8
B127: Riepilogo dei titoli
B128: Riepilogo delle entrate Centro Resp. Amm.va Ordine degli Psicologi del Lazio
B129: Titolo I | C129: 425803.53 | D129: 2978800 | E129: =F129-D129 -> 174240 | F129: 3153040 | G129: 3147902.8
B130: Titolo II | C130: 0 | D130: 0 | E130: =F130-D130 -> 0 | F130: 0 | G130: 0
B131: Titolo IV | C131: 139304.78 | D131: 400000 | E131: 0 | F131: 400000 | G131: 451000
B132: Totale delle entrate Centro Resp. Amm.va Ordine degli Psicologi del Lazio | C132: 565108.31 | D132: 3378800 | E132: 174240 | F132: 3553040 | G132: 3598902.8
B133: Riepilogo delle entrate per titoli dei Centri Resp. Amm.va
B134: Titolo I | C134: 425803.53 | D134: 2978800 | E134: =F134-D134 -> 174240 | F134: 3153040 | G134: 3147902.8
B135: Titolo II | C135: 0 | D135: 0 | E135: =F135-D135 -> 0 | F135: 0 | G135: 0
B136: Titolo IV | C136: 139304.78 | D136: 400000 | E136: 0 | F136: 400000 | G136: 451000
B137: TOTALE | C137: 565108.31 | D137: 3378800 | E137: 174240 | F137: 3553040 | G137: 3598902.8
B138: Avanzo di amministrazione utilizzato | D138: 380540 | E138: -260540 | F138: 120000
B139: TOTALE GENERALE | C139: 565108.31 | D139: 3759340 | E139: -86300 | F139: 3673040 | G139: 3598902.8
A140: ORDINE DEGLI PSICOLOGI DEL LAZIO
A141: PREVENTIVO FINANZIARIO GESTIONALE - Esercizio 2017
A142: PARTE II - USCITE
A143: Codice | B143: Denominazione | C143: Residui attivi presunti alla fine dell'anno in corso ( iniziali 2017 ) | D143: Previsioni iniziali dell'anno in corso ( 2016 ) | E143: VARIAZIONI | F143: Previsioni di competenza per l'anno 2017 | G143: Previsioni di cassa per l'anno 2017
B144: 1. - Ordine degli Psicologi del Lazio
B145: 1. - TITOLO I - SPESE CORRENTI
B146: 1.1. - FUNZIONAMENTO
B147: 1.1.1. - USCITE PER GLI ORGANI DELL'ENTE
A148: 1.1.1.001. | B148: Indennità relative alle cariche istituzionali | C148: 23885.56 | D148: 139000 | E148: =F148-D148 -> 0 | F148: 139000 | G148: 138750.6
A149: 1.1.1.002. | B149: Indennità relative al Consiglio Regionale | C149: 47731.06 | D149: 80000 | E149: =F149-D149 -> 7000 | F149: 87000 | G149: 88261.06
A150: 1.1.1.003. | B150: Premio assicurazione | C150: 0 | D150: 8000 | E150: -1500 | F150: 6500 | G150: 6500
A151: 1.1.1.004. | B151: Elezioni | C151: 219.6 | D151: 0 | E151: 120000 | F151: 120000 | G151: 100000
A152: 1.1.1.005. | B152: Rimborsi spese e rappresentanza relativi al Consiglio | C152: 0 | D152: 5000 | E152: -2000 | F152: 3000 | G152: 3000
B153: TOTALE 1.1.1. - USCITE PER GLI ORGANI DELL'ENTE | C153: 71836.22 | D153: 232000 | E153: 123500 | F153: 355500 | G153: 336511.66
B155: 1.1.2. - ONERI PER IL PERSONALE IN ATTIVITA' DI
B156: SERVIZIO
A157: 1.1.2.001. | B157: Stipendi ed altri assegni fissi al personale | C157: 0 | D157: 491000 | E157: =F157-D157 -> -26000 | F157: 465000 | G157: 465000
A158: 1.1.2.002. | B158: Oneri previdenziali e assicurativi | C158: 30000 | D158: 191000 | E158: =F158-D158 -> -12000 | F158: 179000 | G158: 179000
A159: 1.1.2.003. | B159: Trattamento accessorio | C159: 26750 | D159: 250000 | E159: -7000 | F159: 243000 | G159: 220000
A160: 1.1.2.004. | B160: Formazione del Personale | C160: 9389.12 | D160: 5800 | E160: -1100 | F160: 4700 | G160: 14089.12
A161: 1.1.2.005. | B161: Accantonamento trattamento di fine rapporto | C161: 301090.03 | D161: 50000 | E161: 0 | F161: 50000 | G161: 0
A162: 1.1.2.006. | B162: Spese derivanti dalla sicurezza sul lavoro | C162: 3842 | D162: 6000 | E162: 0 | F162: 6000 | G162: 3708.8
A163: 1.1.2.007. | B163: Piani di orientamento, formazione e inserimento professionale | C163: 0 | D163: 9600 | E163: 4800 | F163: 14400 | G163: 14400
A164: 1.1.2.008. | B164: Spese per assunzioni con contratto di fornitura lavoro temporaneo | C164: 4080 | D164: 30000 | E164: -30000 | F164: 0 | G164: 4080
A165: 1.1.2.009. | B165: Buoni pasto | C165: 0 | D165: 30000 | E165: 0 | F165: 30000 | G165: 29039.09
A166: 1.1.2.010. | B166: Benefici di natura socio-assistenziale (DPR 509/79) | C166: 0 | D166: 8500 | E166: 0 | F166: 8500 | G166: 7323.2
B167: TOTALE 1.1.2. - ONERI PER IL PERSONALE IN ATTIVITA' DI SERVIZIO | C167: 375151.15 | D167: 1071900 | E167: -71300 | F167: 1000600 | G167: 936640.21
B168: 1.1.3. - USCITE PER L'ACQUISTO DI BENI DI
B169: CONSUMO E DI SERVIZI
A170: 1.1.3.001. | B170: Spese per l'acquisto di cancelleria | C170: 500 | D170: 3000 | E170: =F170-D170 -> 1000 | F170: 4000 | G170: 4000
A171: 1.1.3.002. | B171: Fitto locali sede e condominio | C171: 0 | D171: 219000 | E171: =F171-D171 -> -3000 | F171: 216000 | G171: 216000
A172: 1.1.3.003. | B172: Spese postali | C172: 72 | D172: 12000 | E172: -1000 | F172: 11000 | G172: 11000
A173: 1.1.3.004. | B173: Spese per corrieri | C173: 0 | D173: 1000 | E173: 0 | F173: 1000 | G173: 1000
A174: 1.1.3.005. | B174: Spese energia elettrica | C174: 1500 | D174: 16000 | E174: 0 | F174: 16000 | G174: 16000
A175: 1.1.3.006. | B175: Spese telefoniche | C175: 1500 | D175: 10000 | E175: 1000 | F175: 11000 | G175: 11000
A176: 1.1.3.007. | B176: Spese manutenzione locali sede | C176: 2069.09 | D176: 30000 | E176: 0 | F176: 30000 | G176: 30000
A177: 1.1.3.008. | B177: Spese assistenza macchine, attrezzature e software | C177: 7856 | D177: 30000 | E177: 1444 | F177: 31444 | G177: 17340
A178: 1.1.3.009. | B178: Spese assicurazione sede | C178: 0 | D178: 3300 | E178: 0 | F178: 3300 | G178: 3300
A179: 1.1.3.010. | B179: Spese di rappresentanza | C179: 500 | D179: 5000 | E179: 2100 | F179: 7100 | G179: 7100
A180: 1.1.3.012. | B180: Spese per acquisto pubblicazioni e abbonamenti | C180: 0 | D180: 12000 | E180: -3000 | F180: 9000 | G180: 8500
A181: 1.1.3.013. | B181: Spese tipografiche | C181: 0 | D181: 3500 | E181: 0 | F181: 3500 | G181: 3000
A182: 1.1.3.014. | B182: Spese per concorsi | C182: 16000 | D182: 10000 | E182: -4000 | F182: 6000 | G182: 22000
A183: 1.1.3.015. | B183: Spese di tenuta del conto corrente postale | C183: 0 | D183: 0 | E183: 0 | F183: 0 | G183: 0
A184: 1.1.3.016. | B184: Spese per consulenze professionali | C184: 40146.41 | D184: 155000 | E184: 24032 | F184: 179032 | G184: 170000
A185: 1.1.3.017. | B185: rapporti di lavoro tipici | C185: 0 | D185: 0 | E185: 0 | F185: 0 | G185: 0
A186: 1.1.3.018. | B186: Onorari previd. ed assist. derivanti da collab. coord. e cont.e da altri rapp. di lav.tip. | C186: 0 | D186: 0 | E186: 0 | F186: 0 | G186: 0
A187: 1.1.3.019. | B187: Spese per assicurazioni macchine ed attrezzature | C187: 0 | D187: 1000 | E187: 0 | F187: 1000 | G187: 650
A188: 1.1.3.020. | B188: Spese di viaggio | C188: 1000 | D188: 9000 | E188: -1000 | F188: 8000 | G188: 8000
A189: 1.1.3.021. | B189: Spese ed oneri bancari | C189: 0 | D189: 0 | E189: 0 | F189: 0 | G189: 0
A190: 1.1.3.022. | B190: Spese per acquisto materiali di consumo per macchine ufficio (toner, floppy disk) | C190: 805 | D190: 2000 | E190: 1500 | F190: 3500 | G190: 3500
A191: 1.1.3.023. | B191: Spese notarili | C191: 0 | D191: 2000 | E191: 200 | F191: 2200 | G191: 1800
A192: 1.1.3.024. | B192: Valori bollati | C192: 0 | D192: 500 | E192: -200 | F192: 300 | G192: 300
A193: 1.1.3.025. | B193: Spese per liti ed arbitrati | C193: 29535.72 | D193: 10000 | E193: 0 | F193: 10000 | G193: 8000
A194: 1.1.3.027. | B194: Spese beni e servizi non altrove classificati | C194: 120 | D194: 2000 | E194: -1500 | F194: 500 | G194: 300
A195: 1.1.3.028. | B195: Spese per acquisto prodotti igienico sanitari | C195: 200 | D195: 2000 | E195: 0 | F195: 2000 | G195: 2000
A196: 1.1.3.029. | B196: Spese per locazione e noleggio macchinari e attrezzature | C196: 0 | D196: 500 | E196: 300 | F196: 800 | G196: 800
A197: 1.1.3.030. | B197: Spese fornitura acqua | C197: 200 | D197: 1600 | E197: 0 | F197: 1600 | G197: 1500
A198: 1.1.3.031. | B198: Spese fornitura gas | C198: 300 | D198: 3200 | E198: 0 | F198: 3200 | G198: 1500
A199: 1.1.3.032. | B199: Spese per servizi ICT (Information, Communication, Technology) | C199: 6000 | D199: 58200 | E199: -3000 | F199: 55200 | G199: 40000
A200: 1.1.3.033. | B200: Spese servizi intermediazione e conservazione fatture elettroniche | C200: 150 | D200: 2000 | E200: -1000 | F200: 1000 | G200: 700
B201: TOTALE 1.1.3. - USCITE PER L'ACQUISTO DI BENI DI CONSUMO E DI SERVIZI | C201: 108454.22 | D201: 603800 | E201: 13876 | F201: 617676 | G201: 589290
B202: 1.1.4. - SPESE PER COMMISSIONI, GRUPPI DI
B203: LAVORO, INCARICHI VARI
A204: 1.1.4.001. | B204: Rimborsi ed oneri di funzionamento | C204: 100500 | D204: 225000 | E204: =F204-D204 -> -25000 | F204: 200000 | G204: 200000
A205: 1.1.4.002. | B205: Premio assicurazione infortuni | C205: 0 | D205: 0 | E205: 0 | F205: 0 | G205: 0
B206: TOTALE 1.1.4. - SPESE PER COMMISSIONI, GRUPPI DI LAVORO, INCARICHI VARI | C206: 100500 | D206: 225000 | E206: -25000 | F206: 200000 | G206: 200000
B207: TOTALE 1.1. - FUNZIONAMENTO | C207: 655941.59 | D207: 2132700 | E207: 41076 | F207: 2173776 | G207: 2062441.87
... 100 more rows
